{"text_format":"1","workbook":"xlsx","n_sheets":10,"sheets":["F1","MATEMATİK","PDR","SINIF","OKUL ÖNCESİ","SOSYAL BİLGİLER","BÖTE","TÜRKÇE","RESİM","MÜZİK"],"not_rendered":{"charts":0,"images":0,"macros":1,"external_links":0,"defined_names":1,"comments":0,"pivot_tables":0},"unopened":[],"bounds":{"document_bytes":16777216,"sheet_cells":100000,"rows_first":2000,"rows_last":500,"rows_between":2000,"halvings":0,"cell_chars":16384,"cell_head_chars":4096},"cells_cut":0,"cells_raw":0,"read":"whole","date_system":"1900"}

{"sheet":"F1","index":0,"n_rows":53,"n_cols":19,"rows_kept":53,"cut":false,"hidden":false,"merged":[[46,1,47,18],[44,5,44,6],[43,5,43,6],[42,5,42,6],[41,5,41,6],[40,5,40,6],[8,4,8,5],[8,6,8,8],[8,0,8,3],[0,0,0,18],[1,0,1,18],[2,0,2,18],[3,0,3,18],[4,6,4,8],[6,0,6,3],[6,4,6,8],[6,9,6,10],[6,11,6,12],[6,13,8,18],[7,0,7,3],[7,4,7,5],[7,6,7,8],[7,9,8,10],[7,11,8,12],[9,0,9,18],[14,2,14,3],[14,5,14,6],[15,2,15,3],[15,5,15,6],[16,2,16,3],[16,5,16,6],[10,16,12,16],[10,17,12,17],[10,18,12,18],[11,2,12,3],[11,4,12,4],[11,5,12,6],[11,9,12,9],[11,10,12,10],[11,11,12,11],[11,12,12,12],[10,2,10,6],[10,7,12,7],[10,8,12,8],[10,9,10,15],[11,13,11,14],[11,15,12,15],[13,2,13,3],[30,5,30,6],[23,2,23,3],[23,5,23,6],[24,2,24,3],[24,5,24,6],[25,2,25,3],[25,5,25,6],[13,5,13,6],[20,2,20,3],[20,5,20,6],[21,2,21,3],[21,5,21,6],[22,2,22,3],[22,5,22,6],[17,2,17,3],[17,5,17,6],[18,2,18,3],[18,5,18,6],[19,2,19,3],[19,5,19,6],[36,5,36,6],[37,2,37,3],[37,5,37,6],[38,2,38,3],[38,5,38,6],[39,2,39,3],[39,5,39,6],[31,2,31,3],[31,5,31,6],[32,0,32,6],[33,0,33,18],[34,0,42,0],[34,2,34,3],[34,5,34,6],[35,2,35,3],[35,5,35,6],[36,2,36,3],[10,0,31,0],[10,1,12,1],[26,5,26,6],[27,5,27,6],[28,5,28,6],[29,5,29,6],[30,2,30,3],[43,0,44,1],[43,2,43,3],[44,2,44,3],[40,2,40,3],[41,2,41,3],[42,2,42,3],[51,3,51,4],[51,7,51,9],[52,1,52,4],[49,3,49,4],[49,7,49,9],[49,14,49,16],[50,3,50,4],[50,7,50,9],[50,14,50,16],[51,14,51,17],[52,14,52,17]]}
["TÜRKİYE CUMHURİYETİ"]
["GİRESUN ÜNİVERSİTESİ"]
[]
["ÖĞRETİM ELEMANI DERS YÜKÜ FORMU   (F-1)"]
[null,null,null,null,null,"2020/2021"," EĞİTİM ÖĞRETİM YILI",null,null,"GÜZ","YARIYILI"]
[]
[null,null,null,null,"ÖĞRETİM ELEMANININ",null,null,null,null,"İDARİ GÖREVİ :",null,"İMZA",null,"Formda yer alan derslere girdiğimi, tarafıma mükerrer bir ödeme yapılması halinde iade edeceğimi beyan ve taahhüt ederim."]
["TC. KİMLİK NO",null,null,null,"ÜNVANI",null,"ADI SOYADI"]
[]
[]
["ÖRGÜN ÖĞRETİM","SIRA NO","EĞİTİM ÖĞRETİM FAALİYETİNİN YAPILDIĞI",null,null,null,null,"ÖĞR. SAYISI","TEORİK DERSLER","DİĞER FAALİYETLER",null,null,null,null,null,null,"DERS YÜKÜ","YASAL YÜK","ÖDENECEK SAAT"]
[null,null,"FAKÜLTE/ ENST./YO./ MYO/BÖLÜM",null,"DERS KODU","DERSİN ADI",null,null,null,"UYGULAMA","LABORA.","SEMİNER","BİTİRME ÇALIŞMASI","TEZ YÖNETİMİ",null,"Y.SONU SINAV"]
[null,null,null,null,null,null,null,null,null,null,null,null,null,"Y.LİSANS","DOKTORA"]
[null,1,null,null,null,null,null,null,null,null,null,null,null,null,null,null,{"$f":"I14+J14+K14+L14+M14+N14+O14","v":0},null,{"$f":"Q14-R14","v":0}]
[null,2,null,null,null,null,null,null,null,null,null,null,null,null,null,null,{"$f":"I15+J15+K15+L15+M15+N15+O15","v":0},null,{"$f":"Q15-R15","v":0}]
[null,3,null,null,null,null,null,null,null,null,null,null,null,null,null,null,{"$f":"I16+J16+K16+L16+M16+N16+O16","v":0},null,0]
[null,4,null,null,null,null,null,null,null,null,null,null,null,null,null,null,{"$f":"I17+J17+K17+L17+M17+N17+O17","v":0},null,0]
[null,5,null,null,null,null,null,null,null,null,null,null,null,null,null,null,{"$f":"I18+J18+K18+L18+M18+N18+O18","v":0},null,0]
[null,6,null,null,null,null,null,null,null,null,null,null,null,null,null,null,{"$f":"I19+J19+K19+L19+M19+N19+O19","v":0},null,0]
[null,7,null,null,null,null,null,null,null,null,null,null,null,null,null,null,{"$f":"I20+J20+K20+L20+M20+N20+O20","v":0},null,0]
[null,8,null,null,null,null,null,null,null,null,null,null,null,null,null,null,{"$f":"I21+J21+K21+L21+M21+N21+O21","v":0},null,0]
[null,9,null,null,null,null,null,null,null,null,null,null,null,null,null,null,{"$f":"I22+J22+K22+L22+M22+N22+O22","v":0},null,0]
[null,10,null,null,null,null,null,null,null,null,null,null,null,null,null,null,0,null,0]
[null,11,null,null,null,null,null,null,null,null,null,null,null,null,null,null,{"$f":"I24+J24+K24+L24+M24+N24+O24","v":0},null,0]
[null,12,null,null,null,null,null,null,null,null,null,null,null,null,null,null,{"$f":"I25+J25+K25+L25+M25+N25+O25","v":0},null,0]
[null,13,null,null,null,null,null,null,null,null,null,null,null,null,null,null,{"$f":"I26+J26+K26+L26+M26+N26+O26","v":0},null,0]
[null,14,null,null,null,null,null,null,null,null,null,null,null,null,null,null,{"$f":"I27+J27+K27+L27+M27+N27+O27","v":0},null,0]
[null,15,null,null,null,null,null,null,null,null,null,null,null,null,null,null,{"$f":"I28+J28+K28+L28+M28+N28+O28","v":0},null,0]
[null,16,null,null,null,null,null,null,null,null,null,null,null,null,null,null,{"$f":"I29+J29+K29+L29+M29+N29+O29","v":0},null,0]
[null,17,null,null,null,null,null,null,null,null,null,null,null,null,null,null,{"$f":"I30+J30+K30+L30+M30+N30+O30","v":0},null,0]
[null,18,null,null,null,null,null,null,null,null,null,null,null,null,null,null,{"$f":"I31+J31+K31+L31+M31+N31+O31","v":0},null,0]
[null,19,null,null,null,null,null,null,null,null,null,null,null,null,null,null,{"$f":"I32+J32+K32+L32+M32+N32+O32","v":0},null,0]
["TOPLAM",null,null,null,null,null,null,null,null,null,{"$f":"SUM(K14:K32)","v":0},{"$f":"SUM(L14:L32)","v":0},{"$f":"SUM(M14:M32)","v":0},{"$f":"SUM(N14:N32)","v":0},0,0,{"$f":"SUM(Q14:Q32)","v":0},{"$f":"SUM(R14:R32)","v":0},0]
[]
["II. ÖĞRETİM",1,null,null,null,null,null,null,null,null,null,null,null,null,null,null,{"$f":"I35+J35+K35+L35+M35+N35+O35","v":0},null,{"$f":"Q35-R35","v":0}]
[null,2,null,null,null,null,null,null,null,null,null,null,null,null,null,null,{"$f":"I36+J36+K36+L36+M36+N36+O36","v":0},null,{"$f":"Q36-R36","v":0}]
[null,3,null,null,null,null,null,null,null,null,null,null,null,null,null,null,{"$f":"I37+J37+K37+L37+M37+N37+O37","v":0},null,0]
[null,4,null,null,null,null,null,null,null,null,null,null,null,null,null,null,{"$f":"I38+J38+K38+L38+M38+N38+O38","v":0},null,0]
[null,5,null,null,null,null,null,null,null,null,null,null,null,null,null,null,{"$f":"I39+J39+K39+L39+M39+N39+O39","v":0},null,0]
[null,6,null,null,null,null,null,null,null,null,null,null,null,null,null,null,{"$f":"I40+J40+K40+L40+M40+N40+O40","v":0},null,0]
[null,7,null,null,null,null,null,null,null,null,null,null,null,null,null,null,{"$f":"I41+J41+K41+L41+M41+N41+O41","v":0},null,0]
[null,8,null,null,null,null,null,null,null,null,null,null,null,null,null,null,{"$f":"I42+J42+K42+L42+M42+N42+O42","v":0},null,0]
[null,9,null,null,null,null,null,null,null,null,null,null,null,null,null,null,{"$f":"I43+J43+K43+L43+M43+N43+O43","v":0},null,0]
[null,null,null,null,null,"II.ÖĞRETİM TOPLAMI",null,null,{"$f":"SUM(I35:I43)","v":0},{"$f":"SUM(J35:J43)","v":0},0,0,0,0,0,0,{"$f":"I44+J44+K44+L44+M44+N44+O44","v":0},{"$f":"SUM(R35:R43)","v":0},0]
[null,null,null,null,null,"GENEL TOPLAM",null,null,{"$f":"I33+I44","v":0},{"$f":"J33+J44","v":0},0,0,0,0,0,0,0,0,0]
[]
[null,"Yukarıda ünvanı, adı, soyadı yazılı öğretim elemanının formda beyanı yapılan öğretim çalışmalarını gerçekleştirme ve ders yükü çalışmaları karşılığında kendisine ek ders ücreti ödenmesini 2914 sayılı kanunun 11. maddesi gereğince onaylarınıza arz ederim."]
[]
[]
[null,null,null,"…./…./2020",null,null,null,"…../…../2020",null,null,null,null,null,null,"         ……/….../2020"]
[null,null,null,"……………………………",null,null,null,"…………………………..",null,null,null,null,null,null,"            UYGUNDUR"]
[null,null,null,"        A.B.D. Başkanı",null,null,null,"        Bölüm Başkanı",null,null,null,null,null,null,"Prof. Dr. Mustafa ŞANAL"]
[null,null,null,null,null,null,null,null,null,null,null,null,null,null," Dekan "]

{"sheet":"MATEMATİK","index":1,"n_rows":55,"n_cols":15,"rows_kept":55,"cut":false,"hidden":true,"merged":[[3,0,3,1],[3,8,3,9],[49,2,51,2],[49,3,51,3],[49,4,51,4],[49,5,51,5],[19,0,19,1],[19,8,19,9],[34,0,34,1],[34,8,34,9],[23,2,24,2],[23,3,24,3],[23,4,24,4],[23,5,24,5],[46,8,46,9],[51,10,53,10],[51,11,53,11],[51,12,53,12],[51,13,53,13],[36,2,38,2],[36,3,38,3],[36,4,38,4],[36,5,38,5],[21,10,23,10],[21,11,23,11],[21,12,23,12],[21,13,23,13],[11,2,12,2],[11,3,12,3],[11,4,12,4],[11,5,12,5]]}
["BÖLÜMÜ:","MATEMATİK VE FEN BİLİMLERİ EĞİTİMİ BÖLÜMÜ"]
["ABD:","MATEMATİK EĞİTİMİ LİSANS PROGRAMI"]
[]
["1. Yarıyıl Dersleri",null,null,null,null,null,null,null,"2. Yarıyıl Dersleri"]
["Dersin Kodu","Dersin Adı","T","U","K","ECTS","Öğretim Üyesi",null,"Dersin Kodu","Dersin Adı","T","U","K","ECTS","Öğretim Üyesi"]
["IMATO101","Genel Matematik",4,2,5,10,null,null,"IMATO102","Soyut Matematik",3,0,3,6]
["TUR109","Tükçe I: Yazılı Anlatım",2,0,2,2,null,null,"IMATO104","Geometri",3,0,3,7]
["AITB191","Atatürk İlkeleri ve Inkılap Tarihi I",2,0,2,2,null,null,"ENF136","Bilgisayar II",2,2,3,5]
["YDB117","Yabancı Dil I",3,0,3,3,null,null,"TUR110","Türkçe II: Sözlü Anlatım",2,0,2,2]
["ENF135","Bilgisayar I",2,2,3,5,null,null,"AITB192","Atatürk İlkeleri ve Inkılap Tarihi II",2,0,2,2]
["OMES103","Eğitim Bilimine Giriş",3,0,3,5,null,null,"YDB118","Yabancı Dil II",3,0,3,3]
["Seçmeli",null,2,0,2,3,null,null,"OMES104","Eğitim Psikolojisi",3,0,3,5]
["TCE","Toplumsal Cinsiyet Eşitliği"]
[null,"TOPLAM",{"$f":"SUM(C6:C12)","v":18},4,17,"30",null,null,null,"TOPLAM",18,2,19,30]
[]
["3. Yarıyıl Dersleri",null,null,null,null,null,null,null,"4. Yarıyıl Dersleri"]
["Dersin Kodu","Dersin Adı","T","U","K","ECTS","Öğretim Üyesi",null,"Dersin Kodu","Dersin Adı","T","U","K","ECTS","Öğretim Üyesi"]
["IMATO201","Analiz I",4,2,5,8,null,null,"IMATO202","Analiz II",4,2,5,8]
["IMATO203","Lineer Cebir I",3,0,3,5,null,null,"IMATO204","Lineer Cebir II",3,0,3,5]
["IMATO205","Fizik I",4,0,4,6,null,null,"IMATO206","Fizik II",4,0,4,6]
["IMATO207","Bilimsel Araştırma Yöntemleri",2,0,2,3,null,null,"IMATO208","Öğretim Teknolojileri ve Materyal Tasarım",2,2,3,5]
["OMES203","Öğretim İlke ve Yöntemleri",3,0,3,5,null,null,"Seçmeli  (Aşağıdaki derslerden birisi seçilecektir.)",null,3,0,3,6]
["Seçmeli (Aşağıdaki derslerden birisi seçilecektir.)",null,null,null,null,null,null,null,"IMATO210","GK Matematik ve Oyun",null,null,null,null," "]
["IMATO213","Kağıt Katlama Yöntemi ile Matematik Seçmeli I ",2,0,"2","3",null,null,"IMATO214","GK Proje Geliştirme"]
["IMATO215","Seviyorum Seni Matematik"]
[null,"TOPLAM",null,null,null,null,null,null,null,"TOPLAM",{"$f":"SUM(K18:K24)","v":16},4,{"$f":"SUM(M18:M24)","v":18},30]
[null,null,{"$f":"SUM(C18:C26)","v":18},{"$f":"SUM(D18:D26)","v":2},{"$f":"SUM(E18:E26)","v":17},{"$f":"SUM(F18:F26)","v":27}]
[]
["5. Yarıyıl Dersleri",null,null,null,null,null,null,null,"6. Yarıyıl Dersleri"]
["Dersin Kodu","Dersin Adı","T","U","K","ECTS","Öğretim Üyesi",null,"Dersin Kodu","Dersin Adı","T","U","K","ECTS","Öğretim Üyesi"]
["IMATO301","Analiz III",3,0,3,5,null,null,"IMATO302","Diferansiyel Denklemler",4,0,4,5]
["IMATO303","Analitik Geometri I",3,0,3,4,null,null,"IMATO304","Analitik Geometri II",3,0,3,4]
["IMATO305","İstatistik ve Olasılık I",2,2,3,5,null,null,"IMATO306","İstatistik ve Olasılık II",2,2,3,5]
["IMATO307","Cebire Giriş",3,0,3,5,null,null,"IMATO308","Özel Öğretim Yöntemleri II",2,2,3,5]
["IMATO309","Bilim Tarihi",2,0,2,3,null,null,"IMATO310","Türk Eğitim Tarihi",2,0,2,3]
["IMATO311","Özel Öğretim Yöntemleri I",2,2,3,5,null,null,"IMATO312","Topluma Hizmet Uygulamaları",1,2,2,3]
["Seçmeli (Aşağıdaki derslerden birisi seçilecektir.)",null,2,0,2,3,null,null,"IMATO314","Ölçme ve Değerlendirme",3,0,3,5]
["IMATO315","MB Matematik Sınıflarında İşbirliği ile Öğrenme"]
["IMATO317","MB Matematikte Aktif Öğretim"]
[null,"TOPLAM",{"$f":"SUM(C31:C39)","v":17},"4",19,"30",null,null,null,"TOPLAM",17,6,20,30]
[]
["7. Yarıyıl Dersleri",null,null,null,null,null,null,null,"8.Yarıyıl Dersleri"]
["Dersin Kodu","Dersin Adı","T","U","K","ECTS","Öğretim Üyesi",null,"Dersin Kodu","Dersin Adı","T","U","K","ECTS","Öğretim Üyesi"]
["IMATO401","Elemanter Sayı Kuramı",3,0,3,5,null,null,"IMATO402","Matematik Felsefesi",2,0,2,5]
["IMATO403","Matematik Tarihi",2,0,2,4,null,null,"IMATO404","Türk Eğitim Sistemi ve Okul Yönetimi",2,0,2,4]
["OMES 425","Rehberlik",3,0,3,5,null,null,"IMATO406","Öğretmenlik Uygulaması",2,6,5,10]
["IMATO405","Okul Deneyimi",1,4,3,5,null,null,"Seçmeli I (Aşağıdaki derslerden birişi seçilecektir.)",null,3,0,3,5]
["IMATO407","Sınıf Yönetimi",2,0,2,3,null,null,"IMATO408","GK Konu Alanı Ders Kitabı Geliştirme"]
["IMATO409","Özel Eğitim",2,0,2,3,null,null,"IMATO422","Zeka Oyunları"]
["Seçmeli (Aşağıdaki derslerden birisi seçilecektir.)",null,"3","0","3",5,null,null,"IMATO414","MB Bilgisayar Destekli Matematik Öğretimi"]
["IMATO417","A Kompleks Fonksiyonlar Teorisi",null,null,null,null,null,null,"IMATO416","MB Matematik Sınıflarında Ölçme ve Değerlendirme"]
["IMATO419","Matematiksel Düşünme",null,null,null,null,null,null,"Seçmeli II (Aşağıdaki derslerden birisi seçilecektir.)",null,3,0,3,6]
[null,null,null,null,null,null,null,null,"IMATO420","Geometri Öğretimi"]
[null,null,null,null,null,null,null,null,"IMATO422","Matematik Tarihinin Matematik Derslerinde Kullanımı"]
[null,"TOPLAM","16","4",18,"30",null,null,null,"TOPLAM",12,6,15,30]

{"sheet":"PDR","index":2,"n_rows":53,"n_cols":15,"rows_kept":53,"cut":false,"hidden":true,"merged":[[3,0,3,1],[3,8,3,9],[22,8,22,9],[38,8,38,9],[51,8,51,9]]}
["BÖLÜMÜ:","EĞİTİM BİLİMLERİ BÖLÜMÜ"]
["ABD:","REHBERLİK VE PSİKOLOJİK DANIŞMANMANLIK LİSANS PROGRAMI "]
[]
["1. Yarıyıl Dersleri",null,null,null,null,null,null,null,"2. Yarıyıl Dersleri"]
["Dersin Kodu","Dersin Adı","T","U","K","AKTS","Öğretim Üyesi",null,"Dersin Kodu","Dersin Adı","T","U","K","AKTS","Öğretim Üyesi"]
["PDR 101","Psikolojiye Giriş",3,"0",3,3,null,null,"PDR 102","Sosyal Atropoloji",3,0,4,4]
["PDR 109","Fizyolojik Psikoloji",3,"0",3,3,null,null,"TURO109","Türkçe II: Sözlü Anlatım",2,"0","2",2]
["TUR109","Türkçe I: Yazılı Anlatım","2","0","2",2,null,null,"PDR 110","Türk Eğitim Tarihi","2","0",3,3]
["AITB191","Atatürk İlkeleri ve İnkılap Tarihi I","2","0","2","2",null,null,"AITB192","Atatürk İlkeleri ve İnkılap Tarihi II","2","0","2",2]
["PDR 105","Sosyolojiye Giriş","2","0",4,4,null,null,"YDB118","Yabancı Dil II",3,"0",3,3]
["PDR 107","Felsefeye Giriş","3","0",3,3,null,null,"ENF148","Bilgisayar II","2",2,5,5]
["ENF 147","Bilgisayar I","3","0",5,4,null,null,"PDR104","Gelişim Psikolojisi I","3","0",4,4]
["YDB 117","Yabancı Dil I",3,0,3,2,null,null,"PDR106","Kaynak Tarama ve Rapor Yazma",1,2,3,3]
["IAD101","Değerler Eğitimi ve İş Ahlakı",2,0,2,2,null,null,"PDR108","Eğitim Felsefesi",2,0,4,4]
[null,"Kadın ve Aile Hayatı",2,0,2,2]
["TCE101","Toplumsal Cinsiyet Eşitliği",2,0,2,2]
[null,"TOPLAM",27,"0",32,29,null,null,null,"TOPLAM",20,4,"18","30"]
[]
[]
["3. Yarıyıl Dersleri",null,null,null,null,null,null,null,"4. Yarıyıl Dersleri"]
["Dersin Kodu","Dersin Adı","T","U","K","AKTS","Öğretim Üyesi",null,"Dersin Kodu","Dersin Adı","T","U","K","AKTS","Öğretim Üyesi"]
["PDR 201","Rehberlik ve Psikolojik Danışma",3,"0",4,4,null,null,"PDR202","Test Dışı Teknikler",3,0,3,4]
["PDR 203","İstatistik I",3,"0",4,4,null,null,"PDR204","İnsan İlişkileri ve İletişim",2,2,3,4]
["PDR 205","Bilim Tarihi",3,0,4,4,null,null,"PDR206","İstatistik II",3,0,3,4]
["PDR 207","Özel Eğitim",3,0,4,4,null,null,"PDR208","Sosyal Psikoloji",3,0,3,5]
["PDR 209","Ölçme ve Değerlendirme",3,0,5,5,null,null,"PDR210","Öğrenme Psikolojisi",3,0,3,5]
["PDR 211","Gelişim Psikolojisi II",3,"0",5,5,null,null,"PDR212","Öğretim İlke ve Yöntemleri",3,0,3,5]
["PDR 213","Okullarda Gözlem",2,2,4,4,null,null,"PDR214","Sınıf Yönetimi",2,0,2,3]
[null,"TOPLAM","15","6","18","30",null,null,null,"TOPLAM",19,2,20,"30"]
[]
[]
["5. Yarıyıl Dersleri",null,null,null,null,null,null,null,"6. Yarıyıl Dersleri"]
["Dersin Kodu","Dersin Adı","T","U","K","AKTS","Öğretim Üyesi",null,"Dersin Kodu","Dersin Adı","T","U","K","AKTS","Öğretim Üyesi"]
["PDR 301","Psikolojik Danışma İlke ve Teknikleri",3,0,3,5,null,null,"PDR302","Mesleki Rehberlik ve Danışma Uyg",1,4,3,5]
["PDR 303","Yaşam Dönemleri ve Uyum Problemleri",3,0,3,5,null,null,"PDR304","Rehberlikte Program Geliştirme",3,0,3,4]
["PDR 305","Kişilik Kuramları",3,0,3,5,null,null,"PDR306","Davranış Bozuklukları",3,0,3,4]
["PDR 307","Mesleki Rehberlik ve Danışma",3,0,3,5,null,null,"PDR308","Psikolojik Danışma Kuramları",3,0,3,5]
["SEC I - 305","Aile İçi İletişim",3,0,3,5,null,null,"PDR310","Grupla Psikolojik Danışma",3,0,3,4]
["SEC 307","Eğitim Sosyolojisi",3,0,3,5,null,null,"SEC II -314","Yaratıcı Drama",3,0,3,4]
["SEC 309","Sosyal Beceri Eğitimi",3,0,3,5,null,null,"SEC316","Başa Çıkma Becerileri",3,0,3,4]
[null,"TOPLAM",21,0,21,35,null,null,null,"TOPLAM",19,4,21,"30"]
[]
[]
["7. Yarıyıl Dersleri",null,null,null,null,null,null,null,"8. Yarıyıl Dersleri"]
["Dersin Kodu","Dersin Adı","T","U","K","AKTS","Öğretim Üyesi",null,"Dersin Kodu","Dersin Adı","T","U","K","AKTS","Öğretim Üyesi"]
["PDR 401","Psikolojik Testler",2,4,3,5,null,null,"PDR402","Rehberlik ve Psikolojik Danışma Semineri",2,2,3,5]
["PDR 403","Bireyle Psikolojik Danışma Uygulaması",1,4,3,5,null,null,"PDR404","Rehberlik ve Psikolojik Danışmada Alan Çalışması",2,2,3,5]
["PDR 405","Öğrenme Güçlükleri",3,0,3,4,null,null,"PDR406","Meslek Etiği ve Yasal Konular",2,0,2,5]
["PDR 407","Bilimsel Araştırma Yöntemleri",2,0,2,4,null,null,"PDR408","Kurum Deneyimi",3,0,3,5]
["PDR 409","Topluma Hizmet Uygulamaları",1,2,2,4,null,null,"SEC 414","Aile ve Evlilik Danışmanlığı",3,0,3,5]
["PDR 411","Eğitim Yönetimi",3,0,3,4,null,null,"SEC 416","Nitel Araştırma",3,0,3,5]
["SEC417","Davranış Bozuklukları I (Çoc. ve Erg.)",3,0,3,4,null,null,null,"TOPLAM"]
[null,"TOPLAM",15,10,19,"30",null,null,null,"TOPLAM",{"$f":"SUM(K46:K51)","v":15},{"$f":"SUM(L46:L51)","v":4},{"$f":"SUM(M46:M51)","v":17},{"$f":"SUM(N46:N51)","v":30}]

{"sheet":"SINIF","index":3,"n_rows":60,"n_cols":16,"rows_kept":60,"cut":false,"hidden":true,"merged":[[56,9,56,10],[13,1,13,2],[48,9,48,10],[3,1,3,2],[3,9,3,10],[19,1,19,2],[19,9,19,10],[35,1,35,2],[35,9,35,10]]}
[null,"BÖLÜMÜ:","TEMEL EĞİTİM BÖLÜMÜ"]
[null,"ABD:","SINIF EĞİTİMİ LİSANS PROGRAMI"]
[]
[null,"1. Yarıyıl Dersleri",null,null,null,null,null,null,null,"2. Yarıyıl Dersleri"]
[null,"Dersin Kodu","Dersin Adı","T","U","K","AKTS","Öğretim Üyesi",null,"Dersin Kodu","Dersin Adı","T","U","K","AKTS","Öğretim Üyesi"]
[null,"SINO101","TEMEL MATEMATİK I",2,0,4,4,null,null,"SINO102","TEMEL MATEMATİK II",2,0,4,4]
[null,"SINO105","GENEL BİYOLOJİ",2,0,4,4,null,null,"SINO104","GENEL KİMYA",2,0,4,4]
[null,"SINO107","UYGARLIK TARİHİ",2,0,5,5,null,null,"SINO106","TÜRK TARİHİ VE KÜLTÜRÜ",2,0,3,3]
[null,"TUR109","TÜRKÇE  I : YAZILI ANLATIM",2,0,2,2,null,null,"SINO108","GENEL COĞRAFYA",2,0,2,2]
[null,"AITB191","ATATÜRK İLKELERİ VE İNKILAP TARİHİ I",2,0,2,2,null,null,"ENF136","BİLGİSAYAR II",2,0,5,5]
[null,"YDB117","YABANCI DİL  I",3,0,3,3,null,null,"TUR110","TÜRKÇE II : SÖZLÜ ANLATIM",2,0,2,2]
[null,"ENF135","BİLGİSAYAR  I",2,2,4,4,null,null,"AITB192","ATATÜRK İLKELERİ VE İNKLAP TARİHİ II",2,0,2,2]
[null,"OMES103","EĞİTİM BİLİMİNE GİRİŞ",3,0,4,4,null,null,"YDB118","YABANCI DİL II",3,0,3,3]
[null,"SEÇMELİ DERSLER (aşağıdaki derslerden birisi seçilecektir)",null,null,null,null,null,null,null,"OMES104","EĞİTİM PSİKOLOJİSİ",3,0,5,5]
[null,"SEC 111","TOPLUMSAL CİNSİYET EŞİTLİĞİ",2,0,2,2]
[null,"SEC 113","DEĞERLER EĞİTİMİ VE İŞ AHLAKI",2,0,2,2]
[null,"SEC 115","KADIN VE AİLE HAYATI",2,0,2,2]
[null,null,"TOPLAM",20,2,30,30,null,null,"TOPLAM",null,20,0,30,30]
[]
[]
[null,"3. Yarıyıl Dersleri",null,null,null,null,null,null,null,"4. Yarıyıl Dersleri"]
[null,"Dersin Kodu","Dersin Adı","T","U","K","AKTS","Öğretim Üyesi",null,"Dersin Kodu","Dersin Adı","T","U","K","AKTS","Öğretim Üyesi"]
[null,"SINO203","TÜRK DİLİ I: SES VE YAPI BİLGİSİ",2,0,2,2,null,null,"TUR204","TÜRK DİLİ II: CÜMLE VE METİN BİLGİSİ",2,0,2,2]
[null,"SINO205","GENEL FİZİK",2,0,5,5,null,null,"SINO202","ÇOCUK EDEBİYATI",2,0,4,4]
[null,"SINO207","MÜZİK   ",1,2,3,3,null,null,"SINO206","TÜRKİYE COĞRAFYASI VE JEOPOLİTİĞİ",3,0,4,4]
[null,"SINO209","BEDEN EĞİTİMİ VE SPOR KÜLTÜRÜ ",1,2,3,3,null,null,"SINO208","SANAT EĞİTİMİ",1,2,2,2]
[null,"SINO211","FEN VE TEKNOLOJİ LABORATUAR UYGULAMALARI I",0,2,3,3,null,null,"SINO210","FEN VE TEKNOLOJİ LABARATUAR UYGULAMALARI II",0,2,3,3]
[null,"SINO213","ÇEVRE EĞİTİMİ",2,0,3,3,null,null,"SINO212","MÜZİK ÖĞRETİMİ",1,2,3,3]
[null,"SINO215","FELSEFE",2,0,3,3,null,null,"SINO214","BEDEN EĞİTİMİ VE OYUN ÖĞRETİMİ",1,2,2,2]
[null,"SINO217","SOSYOLOJİ",2,0,3,3,null,null,"SINO216","GÜZEL YAZI TEKNİKLERİ",1,2,2,2]
[null,"OMES203","ÖĞRETİM İLKE VE YÖNTEMLERİ",3,0,5,5,null,null,"SINO218","BİLİMSEL ARAŞTIRMA YÖNTEMLERİ",2,0,3,3]
[null,null,null,null,null,null,null,null,null,"OMES220","ÖĞRETİM TEKNOLOJİLERİ VE MATERYAL TASARIMI",2,2,5,5]
[]
[null,null,"TOPLAM",15,6,30,30,null,null,null,"TOPLAM",15,12,30,30]
[]
[]
[null,"5. Yarıyıl Dersleri",null,null,null,null,null,null,null,"6. Yarıyıl Dersleri"]
[null,"Dersin Kodu","Dersin Adı","T","U","K","AKTS","Öğretim Üyesi",null,"Dersin Kodu","Dersin Adı","T","U","K","AKTS","Öğretim Üyesi"]
[null,"SINO307","FEN VE TEKNOLOJİ ÖĞRETİMİ I",3,0,4,4,null,null,"SINO 302","FEN VE TEKNOLOJİ ÖĞRETİMİ II",3,0,4,4]
[null,"SINO309","İLKOKUMA VE YAZMA ÖĞRETİMİ",3,0,5,5,null,null,"IOSO306","TÜRKÇE ÖĞRETİMİ",3,0,5,5]
[null,"SINO311","HAYAT BİLGİSİ ÖĞRETİMİ",3,0,4,4,null,null,"SINO 308","SOSYAL BİLGİLER ÖĞRETİMİ",3,0,4,4]
[null,"SINO313","MATEMATİK ÖĞRETİMİ I",3,0,4,4,null,null,"IOSO310","MATEMATİK ÖĞRETİMİ II",3,0,4,4]
[null,"SINO315","DRAMA",2,2,5,5,null,null,"SINO 312","ERKEN ÇOCUKLUK EĞİTİMİ",2,0,5,5]
[null,"OMES303","ÖLÇME VE DEĞERLENDİRME",3,0,5,5,null,null,"SINO 314","TOPLUMA HİZMET UYGULAMALARI",1,2,3,3]
[null,"OMES305","SINIF YÖNETİMİ",2,0,3,3,null,null,"OMES 308","OKUL DENEYİMİ",1,4,5,5]
[null,null,"TOPLAM",19,2,30,30,null,null,null,"TOPLAM",16,6,30,30]
[]
[]
[]
[null,"7. Yarıyıl Dersleri",null,null,null,null,null,null,null,"8. Yarıyıl Dersleri"]
[null,"Dersin Kodu","Dersin Adı","T","U","K","AKTS","Öğretim Üyesi",null,"Dersin Kodu","Dersin Adı","T","U","K","AKTS","Öğretim Üyesi"]
[null,"SINO 429","GÖRSEL SANATLAR ÖĞRETİMİ",1,2,3,3,null,null,"IOSO402","BİRLEŞTİRİLMİŞ SINIFLARDA ÖĞRETİM",2,0,5,5]
[null,"IOSO405","DİN KÜLTÜRÜ VE AHLAK BİLGİSİ ÖĞRETİMİ",2,0,3,3,null,null,"SINO 414","TÜRK EĞİTİM TARİHİ",2,0,3,3]
[null,"SINO 419","TRAFİK VE İLKYARIM",2,0,4,4,null,null,"SINO 416","İLKÖĞRETİMDE KAYNAŞTIRMA",2,0,4,4]
[null,"SINO 421","CUMHURİYET DÖNEMİ TÜRK EDEBİYATI",2,0,3,3,null,null,"OMES420","ÖĞRETMELİK UYGULAMASI II",2,6,6,6]
[null,"SINO 423","ETKİLİ İLETİŞİM",3,0,3,3,null,null,"OMES 418","TÜRK EĞİTİM SİSTEMİ VE OKUL YÖNETİMİ",2,0,4,4]
[null,"OMES400","ÖĞRETMENLİK UYGULAMASI I",2,6,6,6,null,null,"SEÇMELİ DERSLER (aşağıdaki derslerden ikisi seçilecektir)"]
[null,"OMES 425","REHBERLİK",3,0,5,5,null,null,"SEC 424","İNSAN HAKLARI VE DEMOKRASİ",2,0,4,4]
[null,"OMES 427","ÖZEL EĞİTİM",2,0,3,3,null,null,"SEC 438","SES EĞİTİMİ VE DİKSİYON",2,0,4,4]
[null,null,"TOPLAM",17,6,30,30,null,null,null,"TOPLAM",14,6,30,30]

{"sheet":"OKUL ÖNCESİ","index":4,"n_rows":56,"n_cols":15,"rows_kept":56,"cut":false,"hidden":true,"merged":[[46,8,46,9],[3,0,3,1],[3,8,3,9],[19,0,19,1],[19,8,19,9],[34,0,34,1],[34,8,34,9]]}
["BÖLÜMÜ:","TEMEL EĞİTİM BÖLÜMÜ"]
["ABD:","OKUL ÖNCESİ EĞİTİMİ LİSANS PROGRAMI"]
[]
["1. Yarıyıl Dersleri",null,null,null,null,null,null,null,"2. Yarıyıl Dersleri"]
["Dersin Kodu","Dersin Adı","T","U","K","AKTS","Öğretim Üyesi",null,"Dersin Kodu","Dersin Adı","T","U","K","AKTS","Öğretim Üyesi"]
["IOO101","OÖ EĞİTİMİNE GİRİŞ","3","0","3","5",null,null,"IOO104","ANNE ÇOCUK SAĞLIĞI VE BESLENMESİ","3","0","3",5]
["IOO103","İNSAN ANATOMİSİ VE FİZYOLOJİSİ",2,"0",2,4,null,null,"TUR110","TÜRKÇE  II: SÖZLÜ ANLATIM","2","0","2",4]
["IOO105","PSİKOLOJİYE GİRİŞ","2","0","2",3,null,null,"AITB192","ATATÜRK İLKE VE İNK. TARİHİ - II","2","0","2",4]
["TURO109","TÜRKÇE  I: YAZILI ANLATIM  I","2","0","2",4,null,null,"IOO112","TEMEL BİLGİ VE İLETİŞİM TEKNOLOJİLERİ",1,2,2,4]
["AITB191","ATATÜRK İLKE VE İNK. TARİHİ - I","2","0","2",4,null,null,"YDB118","İNGİLİZCE II",3,"0",3,4]
["OMES103","EĞİTİM BİLİMİNE GİRİŞ","3","0","3",4,null,null,"IOO108","EĞİTİM FELSEFESİ",2,0,2,3]
["YDB117","İNGİLİZCE I ","3","0","3",4,null,null,"OMES104","EĞİTİM PSİKOLOJİSİ",3,0,3,4]
[null,"SEÇMELİ (GK)",2,0,2,2,null,null,null,"SEÇMELİ (GK)",2,0,2,2]
["TCE","TOPLUMSAL CİNSİYET EŞİTLİĞİ",null,null,null,null,null,null,"SEC102","ÇEVRE VE DOĞA EĞİTİMİ"]
["SEC 107","TEKNOLOJİ OKUR YAZARLIĞI",null,null,null,null,null,null,"SEC106","OYUN YAZMA TEKNİKLERİ"]
[null,null,null,null,null,null,null,null,"SEC110","SAĞLIK VE TRAFİK"]
[null,null,null,null,null,null,null,null,"SEC104","BİREYİ TANIMA TEKNİKLERİ"]
[null,"TOPLAM",19,0,19,"30",null,null,null,"TOPLAM",18,"2",19,"30"]
[]
["3. Yarıyıl Dersleri",null,null,null,null,null,null,null,"4. Yarıyıl Dersleri"]
["Dersin Kodu","Dersin Adı","T","U","K","AKTS","Öğretim Üyesi",null,"Dersin Kodu","Dersin Adı","T","U","K","AKTS","Öğretim Üyesi"]
["IOO205","ERKEN ÇOCUKLUK DÖNEMNDE GELİŞİM -I",3,0,3,4,null,null,"IOO204","ERKEN ÇOCUKLUK DÖNEMNDE GELİŞİM -II","3","0","3",4]
["IOO203","OKUL ÖNCESİNDE FEN EĞİTİMİ",2,2,3,4,null,null,"IOO206","ÇOCUK EDEBİYATI","2",2,3,5]
["IOO207","OKUL ÖNCESİNDE MÜZİK EĞİTİMİ",1,2,2,4,null,null,"IOO208","OKUL ÖNCESİNDE MATEMATİK EĞİTİMİ",2,2,3,5]
["IOO209","OKUL ÖNCESİNDE GÖRSEL SANATLAR EĞİTİMİ",1,2,2,4,null,null,"IOO210","OKUL ÖNCESİNDE OYUN",2,2,"3",5]
["IOO213","EĞİTİM SOSYOLOJİSİ","2","0","2","3",null,null,"IOO212","TÜRK EĞİTİM TARİHİ","2",0,2,4]
["OMES203","ÖĞRETİM İLKE VE YÖNTEMLERİ","3","0","3",4,null,null,"IOO214","ÖZEL ÖĞRETİM YÖNTEMLERİ","2",2,3,5]
["OMES205","OKUL DENEYİMİ",1,4,3,5,null,null,"SEC208","MESLEK ETİĞİ",2,0,0,2]
["SEC211","ÇOCUK VE YARATICILIK (GK)",2,0,2,2]
["SEC211","SAĞLIK TRAFİK EĞİTİMİ"]
[null,"TOPLAM",15,10,20,"30",null,null,null,"TOPLAM",15,8,17,"30"]
[]
["5. Yarıyıl Dersleri",null,null,null,null,null,null,null,"6. Yarıyıl Dersleri"]
["Dersin Kodu","Dersin Adı","T","U","K","AKTS","Öğretim Üyesi",null,"Dersin Kodu","Dersin Adı","T","U","K","AKTS","Öğretim Üyesi"]
["OMES303","ÖZEL EĞİTİM",3,0,"3",3,null,null,"IOO302","OKUL ÖNCESİ EĞİTİMDE PROGRAM","2","2","3",5]
["IOO301","ÇOCUK RUH SAĞLIĞI",2,0,"2","3",null,null,"IOO304","OKUL ÖNCESİNDE KAYNAŞTIRMA",1,2,2,"4"]
["IOO303","OKUL ÖNCESİ EĞİTİMDE DRAMA",1,2,2,"4",null,null,"IOO306","AİLE EĞİTİMİ",3,0,"3",3]
["IOO305","İSTATİSTİK","2",0,2,3,null,null,"IOO308","ÇOCUĞU TANIMA VE DEĞERLENDİRME",2,"0",2,"3"]
["OMES305","SINIF YÖNETİMİ","2",0,2,4,null,null,"IOO310","BİLİMSEL ARAŞTIRMA YÖNTEMLERİ","2","0","2",3]
["IOO307","ÖĞRETİM TEK. VE MAT. TASARIM",2,2,"3","4",null,null,"IOO312","TOPLUMA HİZMET UYGULAMALARI","1","2","2","4"]
["IOO309","ETKİLİ İLETİŞİM","2","0","2",3,null,null,"OMES304","ÖLÇME VE DEĞERLENDİRME",3,0,3,4]
["IOO311","BEBEKLİK DÖNEMİNDE EĞİTİM",2,2,3,4,null,null,"SEC314","ÇOCUK HAKLARI",2,"0",2,2]
["SEC313","SEÇMELİ (Eğitim sisteminde sorunlar, eğilimler ve gelişmeler) ",2,0,2,2,null,null,"SEC316","OKUL ÖNCESİ DÖNEMDE ÇAĞDAŞ YAKLAŞIMLAR",3,0,3,2]
[null,"TOPLAM",18,6,"21","30",null,null,null,"TOPLAM",19,6,22,"30"]
[]
["7. Yarıyıl Dersleri",null,null,null,null,null,null,null,"8. Yarıyıl Dersleri"]
["Dersin Kodu","Dersin Adı","T","U","K","AKTS","Öğretim Üyesi",null,"Dersin Kodu","Dersin Adı","T","U","K","AKTS","Öğretim Üyesi"]
["IOO421","ANNE BABA EĞİTİMİ","2","0","2",5,null,null,"IOO414","İLKÖĞRETİME HAZIRLIK VE İLKÖĞRETİM PROGRAMLARI","2","0","2",4]
["IOO423","ARAŞTIRMA PROJESİ I",1,2,2,6,null,null,"IOO416","ARAŞTIRMA PROJESİ II ","1","2","2",6]
["OMES431","REHBERLİK","3","0","3","5",null,null,"OMES418","TÜRK EĞİTİM SİSTEMİ VE OKUL YÖNETİMİ",2,"0",2,4]
["OMES433","ÖĞRETMENLİK UYGULAMASI I",2,6,5,6,null,null,"OMES420","ÖĞRETMENLİK UYGULAMASI II",2,6,5,6]
["SEC425","SEÇMELİ II  OYUN YAZMA TEKNİKLERİ ",2,0,2,4,null,null,"SEC420","SEÇMELİ III ÇOCUK VE ŞİDDET",3,0,3,5]
["SEC429","SEÇMELİ ÇEVRE-DOĞA EĞİTİMİ",3,0,3,4,null,null,"SEC412","SEÇMELİ IV EĞİTİMDE ÇAĞDAŞ YAKLAŞIMLAR",2,0,2,5]
[null,null,null,null,null,null,null,null,null,"SEÇMELİ IV KARŞILAŞTIRMALI OKUL ÖNCESİ EĞİTİMİ"]
[]
[null,"TOPLAM",13,8,17,"30",null,null,null,"TOPLAM",12,"8","16","30"]

{"sheet":"SOSYAL BİLGİLER","index":5,"n_rows":67,"n_cols":15,"rows_kept":67,"cut":false,"hidden":true,"merged":[[47,8,47,9],[3,0,3,1],[3,8,3,9],[21,0,21,1],[21,8,21,9],[35,8,35,9]]}
["BÖLÜMÜ:","TÜRKÇE VE SOSYAL BİLİMLER EĞİTİMİ BÖLÜMÜ"]
["ABD:","SOSYAL BİLGİLER EĞİTİMİ LİSANS PROGRAMI"]
[]
["1. Yarıyıl Dersleri",null,null,null,null,null,null,null,"2. Yarıyıl Dersleri"]
["Dersin Kodu","Dersin Adı","T","U","K","AKTS","Öğretim Üyesi",null,"Dersin Kodu","Dersin Adı","T","U","K","AKTS","Öğretim Üyesi"]
["ISB101","Sosyal Bilgilerin Temelleri",2,0,2,4,null,null,"ISB102","Genel Fiziki Coğrafya",4,0,4,7]
["ISB103","Sosyal Psikoloji",2,0,2,3,null,null,"ISB104","Eskiçağ Tarihi ve Uygarlığı",2,0,2,4]
["ISB105","Arkeoloji",2,0,2,3,null,null,"ISB106","Felsefe",2,0,2,3]
["ISB107","Sosyoloji",2,0,2,3,null,null,"ISB108","Ekonomi",2,0,2,4]
["TURO109","Türkçe I: Yazılı Anlatım",2,0,2,2,null,null,"TUR110","Türkçe II: Sözlü Anlatım",2,0,2,2]
["ENF135","Bilgisayar I",2,2,3,4,null,null,"ENF136","Bilgisayar II",2,2,3,5]
["YDB117","Yabancı Dil I",3,0,3,3,null,null,"YDB118","Yabancı Dil II",3,0,3,3]
["AITB191","Atatürk İlkeleri ve İnkılap Tarihi I",2,0,2,2,null,null,"AITB192","Atarürk İlkeleri ve İnkılap Tarihi II",2,0,2,2]
["OMES103","Eğitim Bilimine Giriş",3,0,3,4]
["TCE","Toplumsal Cinsiyet Eşitliği",2,0,2,2]
[null,"Değerler Eğitimi ve İş Ahlakı"]
[null,"Kadın ve Aile Hayatı"]
[null,"TOPLAM",22,2,23,30,null,null,null,"TOPLAM",19,2,20,30]
[]
[]
["3. Yarıyıl Dersleri",null,null,null,null,null,null,null,"4. Yarıyıl Dersleri"]
["Dersin Kodu","Dersin Adı","T","U","K","AKTS","Öğretim Üyesi",null,"Dersin Kodu","Dersin Adı","T","U","K","AKTS","Öğretim Üyesi"]
["ISB203","Türkiye Fiziki Coğrafyası",2,0,2,4,null,null,"ISB202","Genel Beşeri ve Ekonomik Coğrafya",4,0,4,5]
["ISB205","İslam Öncesi Türk Tarihi ve Kültürü",2,0,2,4,null,null,"ISB204","Antropoloji",2,0,2,3]
["ISB207","Siyaset Bilimine Giriş",2,0,2,4,null,null,"ISB206","Ortaçağ Tarihi",4,0,4,5]
["ISB209","Temel Hukuk",2,0,2,3,null,null,"ISB208","Bilim, Teknoloji ve Sosyal Değişme",2,0,2,2]
["ISB211","Sanat ve Estetik",2,0,2,2,null,null,"ISB210","Vatandaşlık Bilgisi",2,0,2,3]
["ISB213","Bilimsel Araştırma Yöntemleri",2,0,2,3,null,null,null,"A Seçmeli II (Aşağıdaki derslerden birisini seçecektir.)",null,null,null,2]
["OMES223","Eğitim Psikolojisi",3,0,3,5,null,null,"SEC222","Alan Seçmeli II Çevre Sorunları Coğrafyası",2,0,2,2]
[null,"A Seçmeli I (Aşağıdaki derslerden birisi seçilecektir.)","2","0","2","3",null,null,"SEC222","Alan Seçmeli II Sosyal Bil. Müze Eğitimi ve Uygulamaları",2,0,2,2]
["SEC239","Alan Seçmeli I Türkiye Turizm Coğrafyası",null,null,null,null,null,null,"ISB212","Türk Eğitim Tarihi",2,0,2,3]
["SEC239","Alan Seçmeli I Siyasal Düşünce Tarihi",null,null,null,null,null,null,"OMES214","Öğretim İlke ve Yöntemleri",3,0,3,5]
[null,"GK Seçmeli I (Aşağıdaki derslerden birisi seçilecektir.)","2","0","2",2,null,null,null,"MB Seçmeli I (Aşağıdaki derslerden birisini seçecektir.)",null,null,null,2]
["SEC217","Genel Kültür Seçmeli I Müzik Eğitimi",null,null,null,null,null,null,"SEC228","Meslek Bilgisi Seçmeli I Eğitim Felsefesi",2,0,2,2]
["SEC217","Genel Kültür Seçmeli I Sosyal Davranış ve Protokol",null,null,null,null,null,null,"SEC228","Meslek Bilgisi Seçmeli I Kavram Öğretimi",2,0,2,2]
[null,null,null,null,null,null,null,null,"SEC228","Meslek Bilgisi Seçmeli I Bilim Tarihi",2,0,2,2]
[null,"TOPLAM","19","0","19",30,null,null,null,"TOPLAM","23","0","23","30"]
[]
["5. Yarıyıl Dersleri",null,null,null,null,null,null,null,"6. Yarıyıl Dersleri"]
["Dersin Kodu","Dersin Adı","T","U","K","AKTS","Öğretim Üyesi",null,"Dersin Kodu","Dersin Adı","T","U","K","AKTS","Öğretim Üyesi"]
["ISB303","Osmanlı Tarihi ve Uygarlığı I",2,0,2,3,null,null,"ISB306","Osmanlı Tarihi ve Uygarlığı II",2,0,2,3]
["ISB307","Türkiye Beşeri ve Ekonomik Coğrafyası",2,0,2,4,null,null,"ISB308","Sos. Bil. Söz. Ve Yaz. Ed. İnc.",2,0,2,2]
["ISB309","Yeni ve Yakınçağ Tarihi",2,0,2,4,null,null,"ISB310","İnsan İlişkileri ve İletişim",2,0,2,3]
["ISB313","İnsan Hakları ve Demokrasi",2,0,2,3,null,null,"ISB312","Çağdaş Dünya Tarihi",2,0,2,2]
["ISB317","Ülkeler Coğrafyası",2,0,2,3,null,null,"COG304","Siyasi Coğrafya",2,0,2,3]
["ISGK301","Topluma Hizmet Uygulamaları",1,2,2,3,null,null,null,"GK Seçmeli III (Aşağıdaki derslerden birisini seçecektir.)",null,null,null,3]
["OMES309","Öğretim Teknolojileri ve Materyal Tasarımı ",2,2,3,5,null,null,"SEC332","GK Seçmeli III Okul Dışı Tarih Eğitimi",2,0,2,3]
["OMES301","Sınıf Yönetimi",2,0,2,3,null,null,"SEC332","GK Seçmeli III Bilgisayar Destekli Sosyal Bilgiler Eğitimi",2,0,2,3]
[null,"GK Seçmeli II (Aşağıdaki derslerden birisini seçecektir.)",null,null,null,null,null,null,"OMES30","Ölçme ve Değerlendirme",3,0,3,5]
["SEC333"," GK Seçmeli IIÖğretmenlik Meslek Etiği",2,0,2,2,null,null,"IOSB390","Özel Öğretim Yöntemleri I",2,2,3,5]
["SEC333","GK Seçmeli II Tarih Öğretiminde Temel Kavramlar",null,null,null,null,null,null,"OMES310","Türk Eğitim Sistemi ve Okul Yönetimi",2,0,2,4]
[null,"TOPLAM",17,4,19,30,null,null,null,"TOPLAM",19,2,20,30]
[]
[]
[]
[]
["7. Yarıyıl Dersleri",null,null,null,null,null,null,null,"8. Yarıyıl Dersleri"]
["Dersin Kodu","Dersin Adı","T","U","K","AKTS","Öğretim Üyesi",null,"Dersin Kodu","Dersin Adı","T","U","K","AKTS","Öğretim Üyesi"]
["ISB439","Türkiye Cumhuriyeti Tarihi I",2,0,2,4,null,null,"ISB416","Türkiye Cumhuriyeti Tarihi II",2,0,2,4]
["ISB441","Sos. Bil. Ders Kit. İnc.",2,2,3,6,null,null,"ISB418","Sosyal Proje Geliştirme",1,2,2,4]
["ISB443","Günümz Dünya Sorunları",2,0,2,4,null,null,"ISB420","Drama",2,2,3,5]
["IOSB491","Özel Öğretim Yöntemleri II",2,2,3,5,null,null,"OMES402","Rehberlik",3,0,3,5]
["ISBGK445","Program Geliştirme",2,0,2,3,null,null,"OMES400","Öğretmenlik Uygulaması",2,6,5,10]
["ISMB447","Özel Eğitim",2,0,2,3,null,null,null,"MB Seçmeli II (Aşağıdaki derslerden birisini seçecektir.)",null,null,null,2]
["OMES443","Okul Deneyimi",1,4,3,5,null,null,"SEC424","MB Seçmeli II Eğit. Sis. Sorunl. Eğiliml. Ve Gel.",2,0,2,2]
[null,null,null,null,null,null,null,null,"SEC424","MB Seçmeli II Genel Türk Tarihi ve Öğretimi",2,0,2,2]
[null,"TOPLAM",13,8,17,30,null,null,null,"TOPLAM",12,10,17,30]

{"sheet":"BÖTE","index":6,"n_rows":61,"n_cols":15,"rows_kept":61,"cut":false,"hidden":true,"merged":[[42,8,42,9],[3,0,3,1],[3,8,3,9],[19,0,19,1],[19,8,19,9],[31,0,31,1],[31,8,31,9]]}
["BÖLÜMÜ:","BİLGİSAYAR VE ÖĞRETİM TEKNOLOJİLERİ EĞİTİMİ"]
["ABD:","BİLGİSAYAR VE ÖĞRETİM TEKNOLOJİLERİ EĞİTİMİ LİSANS PROGRAMI"]
[]
["1. Yarıyıl Dersleri",null,null,null,null,null,null,null,"2. Yarıyıl Dersleri"]
["Dersin Kodu","Dersin Adı","T","U","K","AKTS","Öğretim Üyesi",null,"Dersin Kodu","Dersin Adı","T","U","K","AKTS","Öğretim Üyesi"]
["BÖTE 101","Eğitimde Bilişim Teknolojileri I",3,2,4,9,null,null,"BÖTE 102","Eğitimde Bilişim Teknolojileri II",3,2,4,9]
["BÖTE 103","Matematik I",2,2,8,8,null,null,"BÖTE 104","Matematik II",2,2,3,8]
["YDB 117","Yabancı Dil I",3,0,4,4,null,null,"YDB 118","Yabancı Dil II",3,0,3,5]
["TUR109","Türkçe I: Yazılı Anlatım",2,0,2,2,null,null,"TUR 110","Türkçe II: Sözlü Anlatım",2,0,2,2]
["AITB191","Atatürk İlkeleri ve İnklapları Tarihi I",2,0,2,2,null,null,"AITB 192","Atatürk İlkeleri ve İnklapları Tarihi II",2,0,2,2]
["OMES103","Eğitim Bilimine Giriş",3,0,3,3,null,null,"OMES 104","Eğitim Psikolojisi",3,0,3,4]
["TCE","Toplumsal Cinsiyet Eşitliği",2,0,2,2]
[]
[null,"TOPLAM",17,4,25,"30",null,null,null,"TOPLAM",15,4,17,"30"]
[]
["3. Yarıyıl Dersleri",null,null,null,null,null,null,null,"4. Yarıyıl Dersleri"]
["Dersin Kodu","Dersin Adı","T","U","K","AKTS","Öğretim Üyesi",null,"Dersin Kodu","Dersin Adı","T","U","K","AKTS","Öğretim Üyesi"]
["BÖTE 201","Programlama Dilleri I",3,2,4,6,null,null,"BÖTE 202","Programlama Dilleri II",3,2,4,6]
["BÖTE 203","Eğitimde Materyal Tasarımı ve Kullanımı",2,2,3,4,null,null,"BÖTE 204","Öğretim Tasarımı",2,2,3,4]
["BÖTE 205","Bilgisayar Donanımı",2,2,3,6,null,null,"BÖTE 206","Eğitimde Grafik ve Canlandırma",2,2,3,5]
["BÖTE 207","Fizik I",3,0,3,5,null,null,"SEC 212","Seçmeli I",3,0,3,5]
["OMES 203","Öğretim İlke ve Yöntemleri",3,0,3,5,null,null,"BÖTE 208","Fizik II",3,0,3,5]
["SEC 211","Seçmeli",3,0,3,4,null,null,"OMES 206","Ölçme ve Değerlendirme",3,0,3,5]
[null,"SEC 211 (Aşağıdaki derslerden birisi seçilecektir.)",3,"0",3,4,null,null,null,"SEC 212 (Aşağıdaki derslerden birisini seçecektir.)"]
["SEC 211","Teknoloji Okuryazarlığı",null,null,null,null,null,null,"SEC 212","Artırılmış Gerçeklik Ortam Tasarımı ve Analizi",3,0,0,5]
["SEC 211","Çevre Eğitimi",null,null,null,null,null,null,"SEC 212","Teknoloji Destekli Fen Eğitimi",3,0,0,5]
["SEC 211","Teknik İngilizce",null,null,null,null,null,null,"SEC 212","Eğitsel Video Geliştirme",3,0,0,5]
[null,null,null,null,null,null,null,null,"SEC 212","Mesleki İngilizce",3,0,0,5]
[null,"TOPLAM",16,6,"19",30,null,null,null,"TOPLAM",16,6,19,30]
[]
[]
["5. Yarıyıl Dersleri",null,null,null,null,null,null,null,"6. Yarıyıl Dersleri"]
["Dersin Kodu","Dersin Adı","T","U","K","AKTS","Öğretim Üyesi",null,"Dersin Kodu","Dersin Adı","T","U","K","AKTS","Öğretim Üyesi"]
["BÖTE 301","İşletim Sistemleri ve Uygulamaları",2,2,3,6,null,null,"BÖTE 302","Çoklu Ortam Tasarımı ve Üretimi",2,2,3,4]
["BÖTE 303","İnternet Tabanlı Programlama",3,2,4,5,null,null,"BÖTE 304","Bilgisayar Ağları ve İletişim",2,2,3,6]
["BÖTE 305","Uzaktan Eğitim",2,2,3,5,null,null,"BÖTE 306","Veri Tabanı Yönetim Sistemleri",2,2,3,6]
["BÖTE 307","Bilim Tarihi",2,0,2,3,null,null,"BÖTE 310","Özel Öğretim Yöntemleri II",2,2,3,5]
["OMES 305","Sınıf Yönetimi",2,0,2,3,null,null,"SEC 314","Seçmeliİ II",2,2,3,5]
["BÖTE 309","Özel Öğretim Yöntemleri I",2,2,3,5,null,null,"BÖTE 312","Topluma Hizmet Uygulamaları",1,2,2,2]
["OMES 307","Özel Eğitim",2,0,2,3,null,null,"BÖTE 314","Türk Eğitim Sistemi ve Okul Yönetimi",2,0,2,2]
[null,null,null,null,null,null,null,null,null,"SEC 314 (Aşağıdaki derslerden birisini seçecektir.)"]
[null,null,null,null,null,null,null,null,"SEC 314","Mikrodenetleyici Programlaması ve Sensörler",2,2,0,5]
[null,null,null,null,null,null,null,null,"SEC 314","Bilgisayar Destekli Öğretim",2,2,0,5]
[null,null,null,null,null,null,null,null,"SEC 314","Fotoğrafçılık",2,2,0,5]
[null,null,null,null,null,null,null,null,"SEC 314","Sanal Dünyalar",2,2,0,5]
[null,"TOPLAM",15,8,"19","30",null,null,null,"TOPLAM",13,12,19,30]
[]
["7. Yarıyıl Dersleri",null,null,null,null,null,null,null,"8. Yarıyıl Dersleri"]
["Dersin Kodu","Dersin Adı","T","U","K","AKTS","Öğretim Üyesi",null,"Dersin Kodu","Dersin Adı","T","U","K","AKTS","Öğretim Üyesi"]
["BÖTE 401","Proje Geliştirme ve Yönetimi I",2,2,3,6,null,null,"BÖTE 402","Proje Geliştirme ve Yönetimi II",2,2,3,6]
["BÖTE 403","Web Tasarımı",2,2,3,6,null,null,"SEC 416","Seçmeli IV",2,2,3,5]
["SEC 415","Seçmeli III",3,0,3,5,null,null,"SEC 414","Seçmeli II",2,0,2,4]
["BÖTE 405","Bilimsel Araştırma Yöntemleri",2,0,2,4,null,null,"BÖTE 404","Rehberlik",3,0,3,5]
["SEC 413","Seçmeli I",2,0,2,4,null,null,"OMES 400","Öğretmenlik Uygulaması",2,6,5,10]
["OMES 401","Okul Deneyimi",1,4,3,5]
[null,"SEC 415 - SEC 413(Aşağıdaki derslerden birisini seçecektir.)",null,null,null,null,null,null,null,"SEC 414 - SEC 416(Aşağıdaki derslerden birisini seçecektir.)"]
["SEC 415","Mobil Öğrenme",3,0,3,5,null,null,"SEC 416","Oyun Tasarımı ve Programlama",2,2,3,5]
["SEC 413","Astronomi I",2,0,2,4,null,null,"SEC 414","Astronomi II",2,0,2,4]
["SEC 413","Yaşam Boyu Öğrenme",2,0,2,4,null,null,"SEC 416","Öğretim Teknolojisi Uygulamaları",2,2,3,5]
["SEC 415","Bilişim Etiği",3,0,3,5]
[null,"TOPLAM",12,"8",16,"30",null,null,null,"TOPLAM",11,"10","17","30"]

{"sheet":"TÜRKÇE","index":7,"n_rows":57,"n_cols":15,"rows_kept":57,"cut":false,"hidden":true,"merged":[[46,8,46,9],[3,0,3,1],[3,8,3,9],[19,0,19,1],[19,8,19,9],[34,0,34,1],[34,8,34,9]]}
["BÖLÜMÜ:","TÜRKÇE VE SOSYAL BİLİMLER EĞİTİMİ BÖLÜMÜ"]
["ABD:","TÜRKÇE ÖĞRETMENLİĞİ LİSANS PROGRAMI"]
[]
["1. Yarıyıl Dersleri",null,null,null,null,null,null,null,"2. Yarıyıl Dersleri"]
["Dersin Kodu","Dersin Adı","T","U","K","AKTS","Öğretim Üyesi",null,"Dersin Kodu","Dersin Adı","T","U","K","AKTS","Öğretim Üyesi"]
["TOA111","Yazı Yazma Teknikleri",1,2,2,3,null,null,"TUR102","Türk Dil Bilgisi II: Şekil Bilgisi",2,0,2,4]
["TOA113","Türk Dil Bilgisi I: Ses Bilgisi",2,0,2,2,null,null,"TUR104","Osmanlı Türkçesi II",2,0,2,4]
["TOA115","Edebiyat Bilgi ve Kuramları I",2,0,2,4,null,null,"TUR110","Yazılı Anlatım II",2,0,2,4]
["TOA117","Yazılı Anlatım I",2,0,2,4,null,null,"TUR116","Edebiyat Bilgi ve Kuramları II",2,0,2,4]
["TOA119","Sözlü Anlatım I",2,0,2,4,null,null,"TUR120","Sözlü Anlatım II",2,0,2,4]
["TOA121","Osmanlı Türkçesi I",2,0,2,3,null,null,"AITB192","Atatürk İlkeleri ve İnkılap Tarihi II",2,0,2,2]
["AITB191","Atatürk İlkeleri ve İnkılap Tarihi I",2,0,2,2,null,null,"YDB116","Yabancı Dil II ",3,0,3,3]
["YDB117","Yabancı Dil I",3,0,3,3,null,null,"OMES104","Eğitim Psikolojisi",3,0,3,5]
["OMES103","Eğitim Bilimine Giriş",3,0,3,5]
["SEC IAD101","İş Ahlakı ve Değerler Eğitimi",2,0,null,2]
["SEC KAH101","Kadın eğitimi ve Aile Hayatı",2,0,null,2]
[null,"TOPLAM",{"$f":"SUM(C6:C16)","v":23},{"$f":"SUM(D6:D16)","v":2},{"$f":"SUM(E6:E16)","v":20},{"$f":"SUM(F6:F16)","v":34},null,null,null,"TOPLAM",{"$f":"SUM(K6:K16)","v":18},{"$f":"SUM(L6:L16)","v":0},{"$f":"SUM(M6:M16)","v":18},{"$f":"SUM(N6:N16)","v":30}]
[]
["3. Yarıyıl Dersleri",null,null,null,null,null,null,null,"4. Yarıyıl Dersleri"]
["Dersin Kodu","Dersin Adı","T","U","K","AKTS","Öğretim Üyesi",null,"Dersin Kodu","Dersin Adı","T","U","K","AKTS","Öğretim Üyesi"]
["TURO201","Türk Dil Bilgisi III: Sözcük Bilgisi  ",2,"0",2,4,null,null,"TUR202","Türk Dil Bil. IV:Cümle Bilgisi",3,"0",3,4]
["TURO203","Eski Türk Edebiyatı I",2,"0",2,3,null,null,"TUR204","Türk Halk Edebiyatı II",2,"0","2",4]
["TURO205","Yeni Türk Edebiyatı I",2,0,2,3,null,null,"TUR206","Eski Türk Edebiyatı II",2,"0",2,3]
["TURO213","Türk Halk Edebiyatı I",2,0,2,4,null,null,"TUR208","Yeni Türk Edebiyatı II",2,"0","2",3]
["TURO225","Bilimsel Araştırma Yöntemleri",2,"0",2,3,null,null,"TUR210","Genel Dilbilimi",3,"0",3,3]
["ENF247","Bilgisayar I",2,2,3,5,null,null,"ENF248","Bilgisayar II",2,2,3,5]
["OMES203","Öğretim İlke ve Yöntemleri",3,"0",3,5,null,null,"TUR212","Etkili İletişim",3,"0",3,3]
["SEC227","Türk Dili ve Edebiyatı Eğitimi",3,0,null,3,null,null,"OMES216","Öğretim Tek. ve Mat. Tasarımı",2,2,3,5]
["SEC229","Türk Edebiyatında Öncü Sanat.",3,0,null,3]
["SEC231","Sözlü ve Yazılı Kültür",3,0,null,3]
[null,"TOPLAM",{"$f":"SUM(C21:C30)","v":24},{"$f":"SUM(D21:D30)","v":2},{"$f":"SUM(E21:E30)","v":16},{"$f":"SUM(F21:F30)","v":36},null,null,null,"TOPLAM",{"$f":"SUM(K21:K28)","v":19},{"$f":"SUM(L21:L28)","v":4},21,{"$f":"SUM(N21:N28)","v":30}]
[]
["5. Yarıyıl Dersleri",null,null,null,null,null,null,null,"6. Yarıyıl Dersleri"]
["Dersin Kodu","Dersin Adı","T","U","K","AKTS","Öğretim Üyesi",null,"Dersin Kodu","Dersin Adı","T","U","K","AKTS","Öğretim Üyesi"]
["TOA311","Anlama Tek. I: Okuma Eğitimi",2,2,3,5,null,null,"TOA312","Anlatma Tek. I: Konuşma Eğitimi",2,2,3,4]
["TOA313","Anlama Tek. II: Dinleme Eğitimi",2,2,3,5,null,null,"TOA314","Anlatma Tek. II: Yazma Eğitimi",2,2,3,5]
["TOA315","Çocuk Edebiyatı",2,0,2,5,null,null,"TOA316","Yabancılara Türkçe Öğretimi",2,"0",2,5]
["TOA317","Dünya Edebiyatı",3,0,3,4,null,null,"TOMB322","Özel Öğretim Yöntemleri II",2,2,3,5]
["TOGK319","Topluma Hizmet Uygulamaları",1,2,2,3,null,null,"TOGK324","Türk Eğitim Tarihi",2,"0",2,3]
["TOMB321","Özel Öğretim Yöntemleri I",2,2,3,5,null,null,"TOGK326","Uygarlık Tarihi",2,0,2,3]
["OMES30","Sınıf Yönetimi",2,0,2,3,null,null,"OMES30","Ölçme ve Değerlendirme",3,"0",3,5]
[null,"TOPLAM",{"$f":"SUM(C35:C41)","v":14},{"$f":"SUM(D35:D41)","v":8},{"$f":"SUM(E35:E41)","v":18},{"$f":"SUM(F35:F41)","v":30},null,null,null,"TOPLAM",{"$f":"SUM(K35:K41)","v":15},{"$f":"SUM(L35:L41)","v":6},{"$f":"SUM(M35:M41)","v":18},{"$f":"SUM(N35:N41)","v":30}]
[]
["7. Yarıyıl Dersleri",null,null,null,null,null,null,null,"8. Yarıyıl Dersleri"]
["Dersin Kodu","Dersin Adı","T","U","K","AKTS","Öğretim Üyesi",null,"Dersin Kodu","Dersin Adı","T","U","K","AKTS","Öğretim Üyesi"]
["TURO403","Tiyatro ve Drama Uygulamaları",2,2,3,6,null,null,"TOA426","Dil ve Kültür",2,0,2,3]
["TURO405","Türkçe Ders Kitabı İncelemeleri",2,0,2,6,null,null,"TOMB430","Türk Eğitim Sis. ve Okul Yön.",2,0,2,4]
["OMES401","Okul Deneyimi",1,4,3,5,null,null,"OMES400","Öğretmenlik Uygulaması",2,6,5,6]
["OMES45","Rehberlik",3,0,3,5,null,null,"SEC418","Çağdaş Türk Edebiyatı",3,0,null,6]
["TOMB457","Özel Eğitim",2,0,2,3,null,null,"SEC420","Roman Tahlilleri",3,0,null,6]
["SEC445","Halk Bilimi ",2,0,null,5,null,null,"SEC422","Sinema ve Edebiyat",3,0,null,6]
["SEC447","Şiir Tahlilleri",2,"0",null,5,null,null,"SEC424","Türk Dünyası Edebiyatı ",2,0,null,5]
["SEC449","Çocuk Folkloru",2,0,null,5,null,null,"SEC426","Hikaye Tahlilleri",2,0,null,5]
[null,null,null,null,null,null,null,null,"SEC428","Oyun Eleştirisi ",2,0,null,6]
[null,null,null,null,null,null,null,null,"SEC430","Türk Halk Şiiri",3,0,null,6]
[null,null,null,null,null,null,null,null,null,"Bilimsel Yaz. Teknikleri",2,0,null,6]
[null,"TOPLAM",{"$f":"SUM(C46:C55)","v":16},{"$f":"SUM(D46:D53)","v":6},{"$f":"SUM(E46:E53)","v":13},{"$f":"SUM(F46:F53)","v":40},null,null,null,"TOPLAM",{"$f":"SUM(K46:K56)","v":26},{"$f":"SUM(L46:L56)","v":6},{"$f":"SUM(M46:M56)","v":9},{"$f":"SUM(N46:N56)","v":59}]

{"sheet":"RESİM","index":8,"n_rows":85,"n_cols":17,"rows_kept":85,"cut":false,"hidden":true,"merged":[[44,8,44,9],[3,15,3,16],[16,0,16,1],[16,8,16,9],[32,0,32,1],[32,8,32,9],[32,15,32,16],[3,0,3,1]]}
["BÖLÜMÜ:","GÜZEL SANATLAR EĞİTİMİ BÖLÜMÜ"]
["ABD:","RESİM-İŞİ EĞİTİMİ LİSANS PROGRAMI"]
[]
["1. Yarıyıl Dersleri",null,null,null,null,null,null,null,null,"2. Yarıyıl Dersleri"]
["Dersin Kodu","Dersin Adı","T","U","L","K","AKTS","Öğretim Üyesi",null,"Dersin Kodu","Dersin Adı","T","U","L","K","AKTS","Öğretim Üyesi"]
["RE101","Desen-I",2,2,null,null,4,null,null,"RE102","Desen-II",2,2,null,null,5]
["RE103","Temel Tasarım I",4,4,null,null,8,null,null,"RE104","Temel Tasarım-II",4,4,null,null,8]
["RE105","Perspektif",1,2,null,null,3,null,null,"RE106","Sanat Tarihine Giriş",2,0,null,null,3]
["MB107","Eğitim Bilime Giriş",3,0,null,null,4,null,null,"GK108","Türkçe -II Sözlü Anlatım",2,0,null,null,2]
["GK109","Türkçe -I Yazılı Anlatım",2,0,null,null,2,null,null,"GK110","İngilizce-II",3,0,null,null,3]
["GK111","Atatürk İlkeleri ve İnkılap Tarihi-I",2,0,null,null,2,null,null,"GK112","Atatürk İlkeleri ve İnkilap Tarihi-II",2,0,null,null,2]
["GK113","İngilizce-I",3,0,null,null,3,null,null,"MB114","Eğitim Psikolojisi",3,0,null,null,3]
["UNİSÇ","Toplumsal Cinsiyet Eşitliği",2,0,null,null,2,null,null,"GK116","Kültür Tarihi",2,0,null,null,2]
["RE115","Seçmeli I",2,0,null,null,2,null,null,"RE118","Seçmeli II",2,0,null,null,2]
["RE115 A","Seçmeli I (Resim Teknikleri I)",2,0,null,null,2,null,null,"RE118A","Seçmeli II (Resim Teknikleri II)",2,0,null,null,2]
["RE115 B","Seçmeli I (Duvar Resmi I)",2,0,null,null,2,null,null,"RE118B","Seçmeli II (Duvar Resmi II)",2,0,null,null,2]
["RE115 C","Seçmeli I (Artistik Anatomi I)",2,0,null,null,2,null,null,"RE118C","Seçmeli II (Artistik Anatomi II)"]
[null,"TOPLAM",21,8,0,null,30,null,null,null,"TOPLAM",22,6,0,null,30]
[]
[]
["3. Yarıyıl Dersleri",null,null,null,null,null,null,null,null,"4. Yarıyıl Dersleri"]
["Dersin Kodu","Dersin Adı","T","U","L","K","AKTS","Öğretim Üyesi",null,"Dersin Kodu","Dersin Adı","T","U","L","K","AKTS","Öğretim Üyesi"]
["RE201","Batı Sanatı Tarihi",3,0,null,null,4,null,null,"MB202","Bilimsel Araştırma Yöntemleri",2,0,null,null,3]
["RE203","Yazı ve Tipografi",1,2,null,null,3,null,null,"RE204","Çocuğun Sanatsal Gelişimi",2,0,null,null,3]
["RE205","Bilgisayar I",2,2,null,null,5,null,null,"RE206","Sanat Felsefesi",2,0,null,null,2]
["MB207","Öğretim İlke ve Yöntemleri",3,0,null,null,4,null,null,"RE208","Bilgisayar II",2,2,null,null,4]
["RE209","Seçmeli III ",2,0,null,null,2,null,null,"MB210","Öğretim Teknolojisi ve Mat. Tas.",2,2,null,null,4]
["RE209 B","Seçmeli III (Artistik Desen I)",2,0,null,null,2,null,null,"RE212","Seçmeli IV ",2,0,null,null,2]
["RE211","Anasanat Atölye I",2,4,null,null,7,null,null,null,"Seçmeli IV  (Drama II)"]
["RE213","Seçmeli Sanat Atölye I",2,2,null,null,5,null,null,"RE214","Anasanat Atölye II",2,4,null,null,7]
[null,null,null,null,null,null,null,null,null,"RE216","Seçmeli Sanat Atölye II",2,2,null,null,5]
[null,"SEÇMELİ DERSLER",null,null,null,null,null,null,null,null,"SEÇMELİ DERSLER"]
["GK209 A","Seçmeli III  (Drama I)",2,0,null,null,2,null,null,"GK212 A"]
["RE209 C","Seçmeli III (Mitoloji ve ikonografi)",2,0,null,null,2,null,null,"RE212 B","Seçmeli IV (Artistik Desen II)",2,0,null,null,2]
[null,"Seçmeli Anasanat Atölye Dersleri",null,null,null,null,null,null,null,"RE212 C","Seçmeli IV (Sanat Sosyolojisi)",2,0,null,null,2]
["RE211","Anasanat Atölye I",2,4,null,null,7,null,null,null,"Seçmeli Anasanat Atölye Dersleri"]
["RE211 A ","Anasanat Atölye I (Resim)",2,4,null,null,7,null,null,"RE214","Anasanat Atölye II",2,4,null,null,7]
["RE211 B","Anasanat Atölye I (Grafik)",2,4,null,null,7,null,null,"RE214 A","Anasanat Atölye II (Resim)",2,4,null,null,7]
["RE211 C","Anasanat Atölye I (Heykel)",2,4,null,null,7,null,null,"RE214 B","Anasanat Atölye II (Grafik)",2,4,null,null,7]
["RE211 D","Anasanat Atölye I (Baskıresim)",2,4,null,null,7,null,null,"RE214 C","Anasanat Atölye II (Heykel)",2,4,null,null,7]
[null,"Seçmeli Sanat Atölye Dersleri",null,null,null,null,null,null,null,"RE214 D","Anasanat Atölye II (Baskıresim)",2,4,null,null,7]
["RE213","Seçmeli Sanat Atölye I",2,2,null,null,5,null,null,null,"Seçmeli Sanat Atölye Dersleri"]
["RE213 A","Seçmeli Sanat Atölye I (Resim) ",2,2,null,null,5,null,null,"RE216","Seçmeli Sanat Atölye II",2,2,null,null,5]
["RE213 C","Seçmeli Sanat Atölye I (Heykel) ",2,2,null,null,5,null,null,"RE216 A","Seçmeli Sanat Atölye II (Resim) ",2,2,null,null,5]
["RE213 D","Seçmeli Sanat Atölye I (Baskıresim) ",2,2,null,null,5,null,null,"RE216 C","Seçmeli Sanat Atölye II  (Heykel)",2,2,null,null,5]
[null,null,null,null,null,null,null,null,null,"RE216 D","Seçmeli Sanat Atölye II (Baskıresim)",2,2,null,null,5]
[null,"TOPLAM",15,10,0,null,30,null,null,null,"TOPLAM",16,10,0,null,30]
[]
[]
["5. Yarıyıl Dersleri",null,null,null,null,null,null,null,null,"6. Yarıyıl Dersleri"]
["Dersin Kodu","Dersin Adı","T","U","L","K","AKTS","Öğretim Üyesi",null,"Dersin Kodu","Dersin Adı","T","U","L","K","AKTS","Öğretim Üyesi"]
["RE301","Müze Eğitimi ve Uygulamaları",2,2,null,null,4,null,null,"MB302","Ölçme ve Değerlendirme",3,0,null,null,4]
["RE303","Özel Öğretim Yöntemleri I",2,2,null,null,5,null,null,"RE304","Çağdaş Sanat",3,0,null,null,3]
["MB305","Sınıf Yönetimi",2,0,null,null,3,null,null,"RE306","Sanat Eserleri Analizi",2,0,null,null,3]
["RE307","Türk Sanat Tarihi",3,0,null,null,3,null,null,"RE308","Özel Öğretim Yöntemleri II",2,2,null,null,5]
["RE309","Sanat Eleştirisi",2,0,null,null,3,null,null,"RE310","Sanat Öğretimi Uygulamaları",2,2,null,null,3]
["RE311","Anasanat Atölye III",2,4,null,null,7,null,null,"RE312","Anasanat Atölye IV",2,4,null,null,7]
["RE311 A ","Anasanat Atölye I (Resim)",2,4,null,null,8,null,null,"RE312 A","Anasanat Atölye IV(Resim)",2,4,null,null,8]
["RE311 B","Anasanat Atölye I (Grafik)",2,4,null,null,8,null,null,"RE312B","Anasanat Atölye IV(Grafik)",2,4,null,null,8]
["RE311 C","Anasanat Atölye I (Heykel)",2,4,null,null,8,null,null,"RE312C","Anasanat Atölye IV(Heykel)",2,4,null,null,8]
["RE311 D","Anasanat Atölye I (Baskıresim)",2,4,null,null,8,null,null,"RE312 D","Anasanat Atölye IV (Baskıresim)",2,4,null,null,8]
["RE313","Seçmeli Sanat Atölye III",2,2,null,null,5,null,null,"RE314","Seçmeli Sanat Atölye IV",2,2,null,null,5]
["RE313","Seçmeli Sanat Atölye III",2,2,null,null,5,null,null,"RE314","Seçmeli Sanat Atölye IV",2,2,null,null,5]
["RE313 A","Seçmeli Sanat Atölye III (Resim)",2,2,null,null,5,null,null,"RE314 A","Seçmeli Sanat Atölye IV (Resim)",2,2,null,null,5]
["RE313 B","Seçmeli Sanat Atölye III (Grafik)",2,2,null,null,5,null,null,"RE314 B","Seçmeli Sanat Atölye IV (Grafik)",2,2,null,null,5]
["RE313 C","Seçmeli Sanat Atölye III (Heykel)",null,null,null,null,5,null,null,"RE314 C","Seçmeli Sanat Atölye IV (Heykel)",2,2,null,null,5]
[null,"TOPLAM",null,null,null,null,null,null,null,null,"TOPLAM"]
[]
[]
["7. Yarıyıl Dersleri",null,null,null,null,null,null,null,null,"8. Yarıyıl Dersleri"]
["Dersin Kodu","Dersin Adı","T","U","L","K","AKTS","Öğretim Üyesi",null,"Dersin Kodu","Dersin Adı","T","U","L","K","AKTS","Öğretim Üyesi"]
["MB401","Rehberlik",3,0,null,null,4,null,null,"MB402","Türk Eğitim Sistemi ve Okul Yönetimi",2,2,null,null,3]
["ME403","Okul Deneyimi",1,4,null,null,6,null,null,"RE404","Öğretmenlik Uygulaması",2,6,null,null,10]
["MB405","Özel Eğitim",2,0,null,null,3,null,null,"RE406","Sanat Öğretimi Projeleri",3,0,null,null,4]
["RE407","Sanatın Topluma Hizmeti",1,2,null,null,4,null,null,"RE410","Anasanat Atölye VI",4,4,null,null,8]
["RE409","Anasanat Atölye V",4,4,null,null,8]
["ME409 A","Anasanat Atölye V(Resim)",4,4,null,null,8,null,null,"RE410 A","Anasanat Atölye VI (Resim)",4,4,null,null,8]
["MB409 B","Anasanat Atölye V(Grafik)",4,4,null,null,8,null,null,"RE410 B","Anasanat Atölye VI (Grafik)",4,4,null,null,8]
["RE409 C","Anasanat Atölye V (Heykel)",4,4,null,null,8,null,null,"RE410 C","Anasanat Atölye VI (Heykel)",4,4,null,null,8]
["RE409 D","Anasanat Atölye V (Baskıresim)",4,4,null,null,8,null,null,"RE410 D","Anasanat Atölye VI (Baskıresim)",4,4,null,null,8]
["RE411","Seçmeli Sanat Atölye V",2,2,null,null,5,null,null,"RE412","Seçmeli Sanat Atölye VI",2,2,null,null,5]
["RE411 A","Seçmeli Sanat Atölye V (Resim)",2,2,null,null,5,null,null,"RE412 A","Seçmeli Sanat Atölye VI (Resim)",2,2,null,null,5]
["RE411 B","Seçmeli Sanat Atölye V (Grafik Tas.)",2,2,null,null,5,null,null,"RE412 B","Seçmeli Sanat Atölye VI (Grafik Tas.)",2,2,null,null,5]
["RE411 D","Seçmeli Sanat Atölye V (Baskıresim)",2,2,null,null,5,null,null,"RE412 D","Seçmeli Sanat Atölye VI (Baskıresim)",2,2,null,null,5]
[null,"TOPLAM",13,12,0,null,30,null,null,null,"TOPLAM",13,14,0,null,30]

{"sheet":"MÜZİK","index":9,"n_rows":80,"n_cols":15,"rows_kept":80,"cut":false,"hidden":true,"merged":[[46,8,46,9],[3,0,3,1],[3,8,3,9],[19,0,19,1],[19,8,19,9],[34,0,34,1],[34,8,34,9]]}
["BÖLÜMÜ:","GÜZEL SANATLAR EĞİTİMİ BÖLÜMÜ"]
["ABD:","MÜZİK EĞİTİMİ LİSANS PROGRAMI"]
[]
["1. Yarıyıl Dersleri",null,null,null,null,null,null,null,"2. Yarıyıl Dersleri"]
["Dersin Kodu","Dersin Adı","T","U","K","AKTS","Öğretim Üyesi",null,"Dersin Kodu","Dersin Adı","T","U","K","AKTS","Öğretim Üyesi"]
["ME101A","Batı Müziği Teorisi ve İşitme Eğitimi-I",2,0,2,2,null,null,"ME102A","Batı Müziği Teorisi ve İşitme Eğitimi-II",2,0,4,4]
["ME103A","T.H.M. Teorisi ve İşitme Eğitimi-I",2,0,2,2,null,null,"ME104A","T.H.M. ve İşitme Eğitimi-II",2,0,4,4]
["ME105A","Bireysel Piyano-I",1,0,2,2,null,null,"ME106A","Bireysel Piyano-II",1,0,1,1]
["ME107A","Bireysel Çalgı-I",1,0,2,2,null,null,"ME108A","Bireysel Çalgı-II",1,0,1,1]
["ME109A","Bireysel Ses Eğitimi-I",1,0,2,2,null,null,"ME110A","Bireysel Ses Eğitimi II",1,0,1,1]
["ME113A","T.H.M. Koro-I",0,2,2,2,null,null,"ME112A","Okul Çalgıları-II (Gitar)",0,2,2,2]
["ME115A","Okul Çalgıları -I (Blok Flüt)",0,2,1,1,null,null,"ME114A","Bireysel Bağlama -II",1,0,2,2]
["ME121A","Bireysel Bağlama -I",1,0,2,2,null,null,"ME118A","T.H.M. Koro-II",0,2,3,3]
["ME119A","Müzik Eğitiminde Bilgisayar Uygulamaları -I",0,2,1,1,null,null,"ME120MB","Eğitim Psikolojisi",3,0,3,3]
["ME111MB","Eğitim Bilime Giriş",3,0,3,3,null,null,"ME116GK","Türkçe -II Sözlü Anlatım",2,0,2,2]
["ME123GK","Müzik Kültürü",2,0,2,2,null,null,"TAR102","Atatürk İlkeleri ve İnkılap Tarihi -II",2,0,2,2]
["ME117GK","Türkçe -I Yazılı Anlatım",2,0,2,2,null,null,"İNG102","İngilizce-II",3,0,3,3]
["TAR101","Atatürk İlkeleri ve İnkılap Tarihi-I",2,0,2,2,null,null,null,"A Seçmeli I (Aşağıdaki derslerden birisi seçilecektir.)"]
["İNG101","İngilizce-I",3,0,3,3,null,null,"ME122GK","Seçmeli-I (Türk Müziği Edebiyatı) ",2,0,2,2]
["TCE101","Toplumsal Cinsiyet Eşitliği",2,0,2,2]
[null,"TOPLAM",{"$f":"SUM(C6:C20)","v":22},{"$f":"SUM(D6:D20)","v":6},{"$f":"SUM(E6:E20)","v":30},{"$f":"SUM(F6:F20)","v":30},null,null,null,"TOPLAM",{"$f":"SUM(K6:K20)","v":20},{"$f":"SUM(L6:L20)","v":4},30,{"$f":"SUM(N6:N20)","v":30}]
[]
["3. Yarıyıl Dersleri",null,null,null,null,null,null,null,"4. Yarıyıl Dersleri"]
["Dersin Kodu","Dersin Adı","T","U","K","AKTS","Öğretim Üyesi",null,"Dersin Kodu","Dersin Adı","T","U","K","AKTS","Öğretim Üyesi"]
["ME201A","Batı Müziği Teorisi ve İşitme Eğitimi-III",2,0,4,4,null,null,"ME202A","Batı Müziği Teorisi ve İşitme Eğitimi-IV",2,0,2,2]
["ME203A","T.H.M. Teorisi ve İşitme Eğitimi-III",2,0,4,4,null,null,"ME204A","T.H.M. Teorisi ve İşitme Eğitimi-IV",2,0,2,2]
["ME205A","Bireysel Piyano-III",1,0,1,1,null,null,"ME206A","Bireysel Piyano-IV",1,0,2,2]
["ME207A","Bireysel Çalgı-III",1,0,1,1,null,null,"ME208A","Bireysel Çalgı- IV",1,0,2,2]
["ME209A","Bireysel Ses Eğitimi -III",1,0,1,1,null,null,"ME210A","Bireysel Ses Eğitimi -IV",1,0,2,2]
["ME211A","Çoksesli Koro -I",0,2,1,1,null,null,"ME212A","Çoksesli Koro -II",0,2,2,2]
["ME213A","T.H.M. Koro-III",0,2,2,2,null,null,"ME214A","T.H.M. Koro-IV",0,2,2,2]
["ME215A","Armoni Kontrpuan Eşlik-I",2,0,2,2,null,null,"ME216A","Armoni-Kontrpuan-Eşlik-II",2,0,3,3]
["ME219A","Okul Çalgıları-III (Gitar)",0,2,1,1,null,null,"ME220A","Bireysel Bağlama -IV",1,0,2,2]
["ME221A","Bireysel Bağlama -III",1,0,2,2,null,null,"ME222A","Çalgı Bakım Onarım Bilgisi",2,0,2,2]
["ME223GK","Eğitimde Bilişim Teknolojileri",3,0,6,6,null,null,"ME224A","Eğitim Müziği Dağarı",2,null,2,2]
["ME217MB","Öğretim İlke ve Yöntemleri",3,0,3,3,null,null,"ME218MB","Ölçme ve Değerlendirme",3,0,3,3]
[null,"A Seçmeli I (Aşağıdaki derslerden birisi seçilecektir.)",null,null,null,null,null,null,null,"A Seçmeli I (Aşağıdaki derslerden birisini seçecektir.)"]
["ME227A","Seçmeli-I (Çalgı Bilgisi) ",2,0,2,2,null,null,"ME226A","Seçmeli-II (Elektronik Org Eğitimi) ",0,2,null,2]
[null,null,null,null,null,null,null,null,null,"GK Seçmeli I (Aşağıdaki derslerden birisini seçecektir.)"]
[null,null,null,null,null,null,null,null,"ME228GK","Seçmeli-II (Türk Eğitim Tarihi)",0,2,null,2]
[null,"TOPLAM",{"$f":"SUM(C25:C39)","v":18},{"$f":"SUM(D25:D39)","v":6},30,{"$f":"SUM(F25:F39)","v":30},null,null,null,"TOPLAM",{"$f":"SUM(K25:K40)","v":17},{"$f":"SUM(L25:L40)","v":8},30,{"$f":"SUM(N25:N40)","v":30}]
[]
["5. Yarıyıl Dersleri",null,null,null,null,null,null,null,"6. Yarıyıl Dersleri"]
["Dersin Kodu","Dersin Adı","T","U","K","AKTS","Öğretim Üyesi",null,"Dersin Kodu","Dersin Adı","T","U","K","AKTS","Öğretim Üyesi"]
["ME301A","Batı Müziği Teorisi ve İşitme Eğitimi-V",2,0,3,3,null,null,"ME302A","Batı Müziği Teorisi ve İşitme Eğitimi-VI",2,0,3,3]
["ME303A","T.S.M. Teorisi ve İşitme Eğitimi-I",2,0,3,3,null,null,"ME304A","T.S.M. Teorisi ve İşitme Eğitimi-II",2,0,3,3]
["ME305A","Bireysel Çalgı ve Öğretimi -I",1,0,2,2,null,null,"ME306A","Türk Halk Müziği Tür ve Biçim Bilgisi",2,0,3,3]
["ME307A","Bireysel Çalgı- V",1,0,2,2,null,null,"ME308A","Bireysel Çalgı- VI",1,0,2,2]
["ME309A","Çoksesli Koro -III",0,2,3,3,null,null,"ME310A","Çoksesli Koro -IV",0,2,2,2]
["ME311A","T.S.M. Koro - I",0,2,3,3,null,null,"ME312A","T.S.M. Koro - II",0,2,2,2]
["ME313A","Batı / Türk Müziği Orkestra - Oda Müziği -I",0,2,2,2,null,null,"ME314A","Batı / Türk Müziği Orkestra- Oda Müziği -II",0,2,2,2]
["ME315A","Piyano İle Eşlik Çalma",0,2,2,2,null,null,"ME316A","Bireysel Çalgı ve Öğretimi -II",1,0,1,1]
["ME317A","Batı Müziği Tür ve Biçim Bilgisi",2,0,2,2,null,null,"ME318A","Türk Müziği Çok Seslendirme",2,0,2,2]
["ME321A","Genel Müzik Tarihi",2,0,2,2,null,null,"ME324A","Türk Müzik Tarihi",2,0,2,2]
["ME319MB","Öğretim Teknolojileri ve Materyal Tasarımı",2,2,2,2,null,null,"ME320MB","Özel Öğretim Yöntemleri -I",2,2,3,3]
[null,"A Seçmeli  (Aşağıdaki derslerden birisini seçecektir.)",null,null,null,null,null,null,"ME322MB","Sınıf Yönetimi",2,0,3,3]
["ME323A","Seçmeli-III (Armoni-Kontrpuan-Eşlik-III) ",2,0,2,2,null,null,null,"A Seçmeli  (Aşağıdaki derslerden birisini seçecektir.)"]
[null,"GK Seçmeli I(Aşağıdaki derslerden birisini seçecektir.)",null,null,null,null,null,null,"ME326A","Seçmeli-IV (Eğitim Müziği Besteleme Teknikleri)",2,0,2,2]
["ME325GK","Seçmeli-III (Sanat Tarihi)",2,0,2,2]
[null,"TOPLAM",{"$f":"SUM(C45:C59)","v":16},{"$f":"SUM(D45:D59)","v":10},30,{"$f":"SUM(F45:F59)","v":30},null,null,null,"TOPLAM",{"$f":"SUM(K45:K59)","v":18},{"$f":"SUM(L45:L59)","v":8},30,30]
[]
["7. Yarıyıl Dersleri",null,null,null,null,null,null,null,"8. Yarıyıl Dersleri"]
["Dersin Kodu","Dersin Adı","T","U","K","AKTS","Öğretim Üyesi",null,"Dersin Kodu","Dersin Adı","T","U","K","AKTS","Öğretim Üyesi"]
["ME401A","Çoksesli Koro-V",0,2,2,2,null,null,"ME402A","Çoksesli Koro ve Yönetimi",0,2,3,3]
["ME403A","T.S.M. Koro - III",0,2,2,2,null,null,"ME404A","T.S.M. Koro -IV",0,2,3,3]
["ME405A","Batı / Türk Müziği Orkestra - Oda Müziği -III",0,2,2,2,null,null,"ME406A","Batı / Türk Müziği Orkestra ve Oda Müziği Yönetimi",0,2,2,2]
["ME407A","Türk Sanat Müziği Teorisi ve İşitme Eğitimi-III",2,0,2,2,null,null,"ME408A","Bireysel Çalgı ve Öğretimi -IV",1,0,1,1]
["ME409A","Bireysel Çalgı ve Öğretimi -III",1,0,1,1,null,null,"ME410A","T.S.M. Teorisi ve İşitme Eğitimi-IV",2,0,2,2]
["ME411A","Bireysel Çalgı - VII",1,0,1,1,null,null,"ME412A","Türk Halk Dansları",0,2,2,2]
["ME419A","T.S.M. Tür ve Biçim Bilgisi",2,0,2,2,null,null,"ME420A","Bireysel Çalgı - VIII",1,0,2,2]
["ME429A","Özel Öğretim Yöntemleri -II",2,2,4,4,null,null,"ME414MB","Öğretmenlik Uygulaması",2,6,7,7]
["ME413MB","Okul Deneyimi",1,4,3,3,null,null,"ME416MB","Türk Eğitim Sistemi ve Okul Yönetimi",2,0,3,3]
["ME415MB","Rehberlik",3,0,3,3,null,null,"ME418MB","Özel Eğitim",2,0,3,3]
["ME417GK","Bilimsel Araştırma Teknikleri",2,0,2,2,null,null,null,"A Seçmeli  (Aşağıdaki derslerden birisini seçecektir.)"]
["ME421GK","Oyun, Dans ve Müzik",0,2,2,2,null,null,"ME422A","Seçmeli-VII (Müzik Eğitiminde Drama Tekniği)",0,2,2,2]
[null,"A Seçmeli  (Aşağıdaki derslerden birisini seçecektir.)"]
["ME425A","Seçmeli-V (Okul Öncesi Müzik Eğitimi Uygulamaları)",2,0,2,2]
[null,"GK Seçmeli I(Aşağıdaki derslerden birisini seçecektir.)"]
["ME423GK","Seçmeli-V (Türk Halk Kültüründe Müzikli Oyunlar)",2,0,2,2]
[null,"TOPLAM",{"$f":"SUM(C64:C79)","v":18},{"$f":"SUM(D64:D79)","v":14},{"$f":"SUM(E64:E79)","v":30},{"$f":"SUM(F64:F79)","v":30},null,null,null,"TOPLAM",{"$f":"SUM(K64:K79)","v":10},{"$f":"SUM(L64:L79)","v":16},{"$f":"SUM(M64:M79)","v":30},{"$f":"SUM(N64:N79)","v":30}]